[Event "Titled Tuesday Blitz July 18 Late 2023"]
[White "Vujacic, Igor"]
[Black "Martinez Reyes, Pedro Ramon"]
[WhiteFideId "932620"]
[BlackFideId "3901807"]
[WhiteElo "2300"]
[BlackElo "2527"]
[Result "1-0"]
[Round "3"]
[TimeControl "180+2"]
[Date "2023.07.18"]
[WhiteClock "0:00:07"]
[BlackClock "0:00:31"]
[Board "122"]

1. d4 {[%clk 0:03:00]}  c5 {[%clk 0:02:58]} 2. d5 {[%clk 0:03:00]}  e5 {[%clk 0:02:59]} 3. Nc3 {[%clk 0:03:00]}  d6 {[%clk 0:02:59]} 4. e4 {[%clk 0:03:00]}  a6 {[%clk 0:03:00]} 5. a4 {[%clk 0:02:59]}  Nf6 {[%clk 0:03:01]} 6. h3 {[%clk 0:02:57]}  Nbd7 {[%clk 0:03:01]} 7. Nf3 {[%clk 0:02:57]}  Be7 {[%clk 0:03:02]} 8. Nd2 {[%clk 0:02:57]}  Nf8 {[%clk 0:03:02]} 9. Nc4 {[%clk 0:02:56]}  Ng6 {[%clk 0:03:01]} 10. Be3 {[%clk 0:02:50]}  Nd7 {[%clk 0:02:52]} 11. a5 {[%clk 0:02:46]}  O-O {[%clk 0:02:51]} 12. Be2 {[%clk 0:02:42]}  Rb8 {[%clk 0:02:50]} 13. Na4 {[%clk 0:02:41]}  Nf4 {[%clk 0:02:46]} 14. Bf3 {[%clk 0:02:35]}  Nf6 {[%clk 0:02:42]} 15. Qd2 {[%clk 0:02:25]}  Ng6 {[%clk 0:02:42]} 16. h4 {[%clk 0:02:10]}  h5 {[%clk 0:02:27]} 17. Bg5 {[%clk 0:01:55]}  Ng4 {[%clk 0:02:16]} 18. Nab6 {[%clk 0:01:40]}  f6 {[%clk 0:02:10]} 19. Be3 {[%clk 0:01:30]}  Bd7 {[%clk 0:02:10]} 20. Nxd7 {[%clk 0:01:28]}  Qxd7 {[%clk 0:02:10]} 21. Qe2 {[%clk 0:01:21]}  Nxe3 {[%clk 0:01:47]} 22. Nxe3 {[%clk 0:01:19]}  Nf4 {[%clk 0:01:46]} 23. Qd1 {[%clk 0:01:17]}  Qb5 {[%clk 0:01:43]} 24. g3 {[%clk 0:01:08]}  Ng6 {[%clk 0:01:36]} 25. Bxh5 {[%clk 0:01:07]}  Qb4+ {[%clk 0:01:28]} 26. c3 {[%clk 0:00:55]}  Qxe4 {[%clk 0:01:28]} 27. Bf3 {[%clk 0:00:55]}  f5 {[%clk 0:01:06]} 28. Bxe4 {[%clk 0:00:53]}  fxe4 {[%clk 0:01:07]} 29. Qg4 {[%clk 0:00:53]}  Nh8 {[%clk 0:01:07]} 30. Qe6+ {[%clk 0:00:45]}  Rf7 {[%clk 0:01:05]} 31. Nf5 {[%clk 0:00:45]}  Kf8 {[%clk 0:00:57]} 32. Ra4 {[%clk 0:00:31]}  Rd8 {[%clk 0:00:54]} 33. Rxe4 {[%clk 0:00:29]}  g6 {[%clk 0:00:54]} 34. Ne3 {[%clk 0:00:27]}  Rf6 {[%clk 0:00:53]} 35. Qg4 {[%clk 0:00:27]}  Nf7 {[%clk 0:00:53]} 36. O-O {[%clk 0:00:27]}  Nh6 {[%clk 0:00:54]} 37. Qh3 {[%clk 0:00:25]}  Rf7 {[%clk 0:00:54]} 38. f4 {[%clk 0:00:24]}  Bf6 {[%clk 0:00:47]} 39. fxe5 {[%clk 0:00:23]}  dxe5 {[%clk 0:00:48]} 40. Qe6 {[%clk 0:00:18]}  Ng8 {[%clk 0:00:46]} 41. Ng4 {[%clk 0:00:17]}  Re8 {[%clk 0:00:45]} 42. Qd6+ {[%clk 0:00:12]}  Be7 {[%clk 0:00:41]} 43. Qxg6 {[%clk 0:00:07]}  Rxf1+ {[%clk 0:00:40]} 44. Kxf1 {[%clk 0:00:08]}  c4 {[%clk 0:00:39]} 45. Nxe5 {[%clk 0:00:09]}  Nf6 {[%clk 0:00:31]} 46. Qf7# {[%clk 0:00:07]} 1-0


[Site "https://www.chess.com"]

[Event "Titled Tuesday Blitz July 18 Late 2023"]
[White "Graif, William"]
[Black "Spichkin, Alexander"]
[WhiteFideId "2609835"]
[BlackFideId "4144074"]
[WhiteElo "2527"]
[BlackElo "2298"]
[Result "0-1"]
[Round "3"]
[TimeControl "180+2"]
[Date "2023.07.18"]
[WhiteClock "0:00:08"]
[BlackClock "0:01:49"]
[Board "123"]

1. e4 {[%clk 0:03:00]}  e5 {[%clk 0:02:58]} 2. Nf3 {[%clk 0:02:59]}  d5 {[%clk 0:02:57]} 3. exd5 {[%clk 0:02:56]}  e4 {[%clk 0:02:57]} 4. Qe2 {[%clk 0:02:53]}  Nf6 {[%clk 0:02:56]} 5. d3 {[%clk 0:02:51]}  Bb4+ {[%clk 0:02:55]} 6. c3 {[%clk 0:02:41]}  O-O {[%clk 0:02:55]} 7. dxe4 {[%clk 0:02:40]}  Bc5 {[%clk 0:02:54]} 8. Bg5 {[%clk 0:02:35]}  c6 {[%clk 0:02:54]} 9. Nbd2 {[%clk 0:02:26]}  cxd5 {[%clk 0:02:53]} 10. e5 {[%clk 0:02:25]}  Re8 {[%clk 0:02:53]} 11. Nb3 {[%clk 0:01:54]}  Bb6 {[%clk 0:02:40]} 12. O-O-O {[%clk 0:01:15]}  Nc6 {[%clk 0:02:34]} 13. Bxf6 {[%clk 0:00:45]}  gxf6 {[%clk 0:02:33]} 14. Qd2 {[%clk 0:00:46]}  fxe5 {[%clk 0:02:27]} 15. Qh6 {[%clk 0:00:30]}  Re6 {[%clk 0:02:23]} 16. Qh5 {[%clk 0:00:30]}  Qf6 {[%clk 0:02:18]} 17. Rxd5 {[%clk 0:00:25]}  Qf4+ {[%clk 0:02:16]} 18. Nbd2 {[%clk 0:00:20]}  Rg6 {[%clk 0:02:10]} 19. Bd3 {[%clk 0:00:17]}  Bg4 {[%clk 0:02:04]} 20. Qh4 {[%clk 0:00:11]}  Rh6 {[%clk 0:02:01]} 21. Qg5+ {[%clk 0:00:11]}  Qxg5 {[%clk 0:02:01]} 22. Nxg5 {[%clk 0:00:12]}  Bxf2 {[%clk 0:01:57]} 23. Rf1 {[%clk 0:00:12]}  Be3 {[%clk 0:01:57]} 24. Nxh7 {[%clk 0:00:12]}  f5 {[%clk 0:01:53]} 25. Bxf5 {[%clk 0:00:07]}  Bxf5 {[%clk 0:01:53]} 26. Rxf5 {[%clk 0:00:08]}  Rxh7 {[%clk 0:01:53]} 27. Rd3 {[%clk 0:00:07]}  Bf4 {[%clk 0:01:52]} 28. g3 {[%clk 0:00:07]}  Bxd2+ {[%clk 0:01:52]} 29. Kxd2 {[%clk 0:00:07]}  Rf8 {[%clk 0:01:53]} 30. Rxf8+ {[%clk 0:00:06]}  Kxf8 {[%clk 0:01:52]} 31. h4 {[%clk 0:00:06]}  Ke7 {[%clk 0:01:52]} 32. Ke3 {[%clk 0:00:06]}  Ke6 {[%clk 0:01:52]} 33. Ke4 {[%clk 0:00:06]}  Rg7 {[%clk 0:01:52]} 34. Kf3 {[%clk 0:00:07]}  Ne7 {[%clk 0:01:51]} 35. g4 {[%clk 0:00:07]}  Nd5 {[%clk 0:01:51]} 36. g5 {[%clk 0:00:07]}  Rf7+ {[%clk 0:01:52]} 37. Kg4 {[%clk 0:00:07]}  Rf4+ {[%clk 0:01:51]} 38. Kh5 {[%clk 0:00:08]}  Rf2 {[%clk 0:01:52]} 39. Kg6 {[%clk 0:00:07]}  Nf4+ {[%clk 0:01:52]} 40. Kg7 {[%clk 0:00:07]}  Nxd3 {[%clk 0:01:51]} 41. h5 {[%clk 0:00:08]}  Nf4 {[%clk 0:01:50]} 42. h6 {[%clk 0:00:08]}  Rh2 {[%clk 0:01:51]} 43. g6 {[%clk 0:00:07]}  e4 {[%clk 0:01:51]} 44. h7 {[%clk 0:00:07]}  Nxg6 {[%clk 0:01:52]} 45. Kxg6 {[%clk 0:00:07]}  e3 {[%clk 0:01:52]} 46. Kg7 {[%clk 0:00:08]}  e2 {[%clk 0:01:52]} 47. h8=Q {[%clk 0:00:08]}  Rxh8 {[%clk 0:01:49]} 48. Kxh8 {[%clk 0:00:08]}  e1=Q {[%clk 0:01:49]} 0-1


[Site "https://www.chess.com"]

[Event "Titled Tuesday Blitz July 18 Late 2023"]
[White "Santos, Rafael Ventura Dos"]
[Black "Salazar Farias, Luis German"]
[WhiteFideId "2122227"]
[BlackFideId "3902170"]
[WhiteElo "2298"]
[BlackElo "2524"]
[Result "0-1"]
[Round "3"]
[TimeControl "180+2"]
[Date "2023.07.18"]
[WhiteClock "0:00:07"]
[BlackClock "0:00:15"]
[Board "125"]

1. e4 {[%clk 0:02:58]}  c6 {[%clk 0:02:57]} 2. d4 {[%clk 0:02:58]}  d5 {[%clk 0:02:58]} 3. e5 {[%clk 0:02:59]}  c5 {[%clk 0:02:58]} 4. dxc5 {[%clk 0:03:00]}  e6 {[%clk 0:02:58]} 5. a3 {[%clk 0:02:56]}  Bxc5 {[%clk 0:02:55]} 6. b4 {[%clk 0:02:54]}  Be7 {[%clk 0:02:55]} 7. c4 {[%clk 0:02:49]}  Nc6 {[%clk 0:02:23]} 8. Nf3 {[%clk 0:02:44]}  dxc4 {[%clk 0:02:16]} 9. Qxd8+ {[%clk 0:02:43]}  Bxd8 {[%clk 0:02:15]} 10. Bxc4 {[%clk 0:02:44]}  Bc7 {[%clk 0:02:03]} 11. Bb2 {[%clk 0:02:43]}  Nge7 {[%clk 0:02:02]} 12. b5 {[%clk 0:02:29]}  Na5 {[%clk 0:02:00]} 13. Ba2 {[%clk 0:02:25]}  Ng6 {[%clk 0:01:43]} 14. O-O {[%clk 0:02:08]}  Bd7 {[%clk 0:01:43]} 15. a4 {[%clk 0:02:08]}  a6 {[%clk 0:01:40]} 16. Na3 {[%clk 0:01:34]}  O-O {[%clk 0:01:27]} 17. Rac1 {[%clk 0:01:18]}  Rfc8 {[%clk 0:01:18]} 18. Rfd1 {[%clk 0:01:13]}  Be8 {[%clk 0:01:17]} 19. g3 {[%clk 0:00:51]}  Bd8 {[%clk 0:00:51]} 20. h4 {[%clk 0:00:48]}  Be7 {[%clk 0:00:50]} 21. h5 {[%clk 0:00:39]}  Nf8 {[%clk 0:00:49]} 22. Nc4 {[%clk 0:00:20]}  axb5 {[%clk 0:00:25]} 23. Nb6 {[%clk 0:00:20]}  Rxc1 {[%clk 0:00:24]} 24. Rxc1 {[%clk 0:00:21]}  Ra6 {[%clk 0:00:24]} 25. Bd4 {[%clk 0:00:20]}  Nc6 {[%clk 0:00:21]} 26. axb5 {[%clk 0:00:18]}  Rxa2 {[%clk 0:00:21]} 27. bxc6 {[%clk 0:00:18]}  Bxc6 {[%clk 0:00:22]} 28. Ne1 {[%clk 0:00:16]}  h6 {[%clk 0:00:21]} 29. Nd3 {[%clk 0:00:15]}  Nh7 {[%clk 0:00:20]} 30. Bc5 {[%clk 0:00:15]}  Bxc5 {[%clk 0:00:17]} 31. Nxc5 {[%clk 0:00:16]}  Ng5 {[%clk 0:00:17]} 32. Ncd7 {[%clk 0:00:11]}  Nh3+ {[%clk 0:00:17]} 33. Kh2 {[%clk 0:00:10]}  Nxf2 {[%clk 0:00:17]} 34. g4 {[%clk 0:00:08]}  Nxg4+ {[%clk 0:00:17]} 35. Kg3 {[%clk 0:00:08]}  Ne3 {[%clk 0:00:16]} 36. Rc3 {[%clk 0:00:08]}  Nf5+ {[%clk 0:00:16]} 37. Kf4 {[%clk 0:00:08]}  Rf2+ {[%clk 0:00:16]} 38. Kg4 {[%clk 0:00:09]}  Rg2+ {[%clk 0:00:16]} 39. Kf4 {[%clk 0:00:08]}  Rh2 {[%clk 0:00:15]} 40. Nc5 {[%clk 0:00:07]}  Rh4# {[%clk 0:00:15]} 0-1


[Site "https://www.chess.com"]

[Event "Titled Tuesday Blitz July 18 Late 2023"]
[White "ArtemDyachuk"]
[Black "Vaglio Munoz, Jaime"]
[BlackFideId "6500145"]
[WhiteElo "2521"]
[BlackElo "2289"]
[Result "1-0"]
[Round "3"]
[TimeControl "180+2"]
[Date "2023.07.18"]
[WhiteClock "0:01:26"]
[BlackClock "0:01:21"]
[Board "126"]

1. e4 {[%clk 0:03:00]}  c5 {[%clk 0:02:59]} 2. Nf3 {[%clk 0:03:00]}  Qa5 {[%clk 0:02:58]} 3. Nc3 {[%clk 0:02:57]}  a6 {[%clk 0:02:58]} 4. d4 {[%clk 0:02:49]}  b5 {[%clk 0:02:58]} 5. dxc5 {[%clk 0:02:40]}  e6 {[%clk 0:02:57]} 6. Bd2 {[%clk 0:02:37]}  b4 {[%clk 0:02:58]} 7. Ne2 {[%clk 0:02:35]}  Bxc5 {[%clk 0:02:58]} 8. Nc1 {[%clk 0:02:30]}  Qb6 {[%clk 0:02:56]} 9. Nd3 {[%clk 0:02:29]}  Be7 {[%clk 0:02:55]} 10. Be2 {[%clk 0:02:28]}  Bb7 {[%clk 0:02:54]} 11. Be3 {[%clk 0:02:28]}  Qc7 {[%clk 0:02:53]} 12. Bf4 {[%clk 0:02:12]}  Qa5 {[%clk 0:02:44]} 13. e5 {[%clk 0:02:05]}  Nc6 {[%clk 0:02:41]} 14. O-O {[%clk 0:02:04]}  h6 {[%clk 0:02:40]} 15. a3 {[%clk 0:01:59]}  bxa3 {[%clk 0:02:39]} 16. bxa3 {[%clk 0:01:56]}  g5 {[%clk 0:02:38]} 17. Bg3 {[%clk 0:01:56]}  h5 {[%clk 0:02:37]} 18. h4 {[%clk 0:01:53]}  g4 {[%clk 0:02:37]} 19. Nd2 {[%clk 0:01:52]}  Nh6 {[%clk 0:02:28]} 20. Nc4 {[%clk 0:01:51]}  Qc7 {[%clk 0:02:27]} 21. Nd6+ {[%clk 0:01:47]}  Bxd6 {[%clk 0:02:26]} 22. exd6 {[%clk 0:01:48]}  Qd8 {[%clk 0:02:24]} 23. Rb1 {[%clk 0:01:46]}  Rb8 {[%clk 0:02:20]} 24. Qd2 {[%clk 0:01:45]}  Nf5 {[%clk 0:02:18]} 25. Nc5 {[%clk 0:01:41]}  Ba8 {[%clk 0:02:06]} 26. Nxa6 {[%clk 0:01:39]}  Rxb1 {[%clk 0:01:46]} 27. Rxb1 {[%clk 0:01:39]}  Nxg3 {[%clk 0:01:43]} 28. fxg3 {[%clk 0:01:38]}  Kf8 {[%clk 0:01:39]} 29. Nc7 {[%clk 0:01:36]}  Qe8 {[%clk 0:01:33]} 30. Nxe8 {[%clk 0:01:32]}  Kxe8 {[%clk 0:01:32]} 31. Qg5 {[%clk 0:01:30]}  Rf8 {[%clk 0:01:26]} 32. Qe7+ {[%clk 0:01:25]}  Nxe7 {[%clk 0:01:21]} 33. Rb8+ {[%clk 0:01:26]} 1-0


[Site "https://www.chess.com"]

[Event "Titled Tuesday Blitz July 18 Late 2023"]
[White "Leenhouts, Koen"]
[Black "BrandonJiang123456"]
[WhiteFideId "1008439"]
[WhiteElo "2518"]
[BlackElo "2276"]
[Result "1/2-1/2"]
[Round "3"]
[TimeControl "180+2"]
[Date "2023.07.18"]
[WhiteClock "0:00:08"]
[BlackClock "0:00:07"]
[Board "128"]

1. e4 {[%clk 0:03:00]}  e5 {[%clk 0:02:56]} 2. Nf3 {[%clk 0:03:00]}  Nc6 {[%clk 0:02:53]} 3. Bb5 {[%clk 0:03:00]}  f5 {[%clk 0:02:53]} 4. d3 {[%clk 0:02:56]}  fxe4 {[%clk 0:02:52]} 5. dxe4 {[%clk 0:02:55]}  Nf6 {[%clk 0:02:53]} 6. Nc3 {[%clk 0:02:54]}  Bc5 {[%clk 0:02:50]} 7. Qd3 {[%clk 0:02:48]}  d6 {[%clk 0:02:47]} 8. Bg5 {[%clk 0:02:42]}  a6 {[%clk 0:02:31]} 9. Bc4 {[%clk 0:02:36]}  Bd7 {[%clk 0:01:55]} 10. a3 {[%clk 0:02:30]}  h6 {[%clk 0:01:38]} 11. Be3 {[%clk 0:02:26]}  Bxe3 {[%clk 0:01:36]} 12. Qxe3 {[%clk 0:02:26]}  Qe7 {[%clk 0:01:28]} 13. Nh4 {[%clk 0:02:13]}  Ng4 {[%clk 0:01:10]} 14. Qg3 {[%clk 0:02:09]}  Nd4 {[%clk 0:01:04]} 15. O-O {[%clk 0:01:31]}  Qg5 {[%clk 0:00:41]} 16. h3 {[%clk 0:01:10]}  Nf6 {[%clk 0:00:39]} 17. Ng6 {[%clk 0:01:04]}  Rh7 {[%clk 0:00:38]} 18. Rac1 {[%clk 0:00:59]}  Nh5 {[%clk 0:00:20]} 19. Qxg5 {[%clk 0:00:56]}  hxg5 {[%clk 0:00:21]} 20. Nd5 {[%clk 0:00:53]}  O-O-O {[%clk 0:00:18]} 21. c3 {[%clk 0:00:47]}  Ne6 {[%clk 0:00:17]} 22. Nge7+ {[%clk 0:00:34]}  Kb8 {[%clk 0:00:17]} 23. Nf5 {[%clk 0:00:35]}  Nhf4 {[%clk 0:00:15]} 24. Nxf4 {[%clk 0:00:34]}  gxf4 {[%clk 0:00:14]} 25. Rfd1 {[%clk 0:00:29]}  Nc5 {[%clk 0:00:15]} 26. f3 {[%clk 0:00:26]}  g6 {[%clk 0:00:15]} 27. b4 {[%clk 0:00:17]}  Na4 {[%clk 0:00:15]} 28. Nxd6 {[%clk 0:00:17]}  cxd6 {[%clk 0:00:16]} 29. Rxd6 {[%clk 0:00:17]}  Kc7 {[%clk 0:00:08]} 30. Rxg6 {[%clk 0:00:16]}  Nb6 {[%clk 0:00:08]} 31. Bb3 {[%clk 0:00:15]}  Ba4 {[%clk 0:00:07]} 32. Be6 {[%clk 0:00:11]}  Rd6 {[%clk 0:00:06]} 33. c4 {[%clk 0:00:10]}  Bd7 {[%clk 0:00:06]} 34. Bf5 {[%clk 0:00:09]}  Rxg6 {[%clk 0:00:04]} 35. Bxg6 {[%clk 0:00:09]}  Rg7 {[%clk 0:00:05]} 36. Bf5 {[%clk 0:00:09]}  Bxf5 {[%clk 0:00:05]} 37. exf5 {[%clk 0:00:10]}  Rf7 {[%clk 0:00:06]} 38. c5 {[%clk 0:00:09]}  Nd5 {[%clk 0:00:06]} 39. Rd1 {[%clk 0:00:09]}  Kc6 {[%clk 0:00:07]} 40. h4 {[%clk 0:00:08]}  Rxf5 {[%clk 0:00:07]} 41. Kh2 {[%clk 0:00:08]}  a5 {[%clk 0:00:05]} 42. Rb1 {[%clk 0:00:07]}  axb4 {[%clk 0:00:05]} 43. axb4 {[%clk 0:00:08]}  Kb5 {[%clk 0:00:05]} 44. Kh3 {[%clk 0:00:08]}  Ne3 {[%clk 0:00:06]} 45. Ra1 {[%clk 0:00:06]}  Rf7 {[%clk 0:00:06]} 46. Rb1 {[%clk 0:00:05]}  Rg7 {[%clk 0:00:06]} 47. Rb2 {[%clk 0:00:05]}  Kc4 {[%clk 0:00:06]} 48. h5 {[%clk 0:00:04]}  Rg5 {[%clk 0:00:06]} 49. Kh4 {[%clk 0:00:04]}  Rxg2 {[%clk 0:00:05]} 50. Rxg2 {[%clk 0:00:04]}  Nxg2+ {[%clk 0:00:06]} 51. Kg5 {[%clk 0:00:05]}  Ne3 {[%clk 0:00:04]} 52. h6 {[%clk 0:00:05]}  Nd5 {[%clk 0:00:02]} 53. h7 {[%clk 0:00:05]}  Kxb4 {[%clk 0:00:03]} 54. h8=Q {[%clk 0:00:05]}  Kxc5 {[%clk 0:00:04]} 55. Qxe5 {[%clk 0:00:05]}  Kc6 {[%clk 0:00:04]} 56. Qe6+ {[%clk 0:00:05]}  Kc5 {[%clk 0:00:04]} 57. Qe5 {[%clk 0:00:06]}  b5 {[%clk 0:00:04]} 58. Qb2 {[%clk 0:00:06]}  b4 {[%clk 0:00:04]} 59. Kf5 {[%clk 0:00:06]}  Kc4 {[%clk 0:00:04]} 60. Ke5 {[%clk 0:00:06]}  Nc3 {[%clk 0:00:04]} 61. Qc2 {[%clk 0:00:06]}  b3 {[%clk 0:00:04]} 62. Qf5 {[%clk 0:00:04]}  b2 {[%clk 0:00:03]} 63. Qxf4+ {[%clk 0:00:04]}  Kb3 {[%clk 0:00:03]} 64. Qf7+ {[%clk 0:00:03]}  Kc2 {[%clk 0:00:03]} 65. Qh7+ {[%clk 0:00:04]}  Kb3 {[%clk 0:00:03]} 66. Qf7+ {[%clk 0:00:03]}  Kc2 {[%clk 0:00:02]} 67. Qf5+ {[%clk 0:00:04]}  Kb3 {[%clk 0:00:03]} 68. Qe6+ {[%clk 0:00:04]}  Kc2 {[%clk 0:00:03]} 69. Qf5+ {[%clk 0:00:03]}  Kb3 {[%clk 0:00:04]} 70. f4 {[%clk 0:00:04]}  b1=Q {[%clk 0:00:04]} 71. Qxb1+ {[%clk 0:00:04]}  Nxb1 {[%clk 0:00:04]} 72. f5 {[%clk 0:00:05]}  Nd2 {[%clk 0:00:04]} 73. f6 {[%clk 0:00:05]}  Nf3+ {[%clk 0:00:05]} 74. Kf5 {[%clk 0:00:04]}  Nd4+ {[%clk 0:00:05]} 75. Ke5 {[%clk 0:00:04]}  Nf3+ {[%clk 0:00:05]} 76. Kf4 {[%clk 0:00:05]}  Nd4 {[%clk 0:00:05]} 77. f7 {[%clk 0:00:05]}  Ne6+ {[%clk 0:00:05]} 78. Ke5 {[%clk 0:00:06]}  Nf8 {[%clk 0:00:06]} 79. Kd6 {[%clk 0:00:06]}  Ng6 {[%clk 0:00:06]} 80. Ke6 {[%clk 0:00:06]}  Nf8+ {[%clk 0:00:06]} 81. Ke7 {[%clk 0:00:06]}  Ng6+ {[%clk 0:00:06]} 82. Kf6 {[%clk 0:00:07]}  Nf8 {[%clk 0:00:07]} 83. Kg7 {[%clk 0:00:07]}  Nd7 {[%clk 0:00:07]} 84. Kg6 {[%clk 0:00:07]}  Nf8+ {[%clk 0:00:07]} 85. Kf5 {[%clk 0:00:08]}  Nd7 {[%clk 0:00:07]} 86. Ke6 {[%clk 0:00:08]}  Nf8+ {[%clk 0:00:07]} 87. Kd6 {[%clk 0:00:08]}  Ng6 {[%clk 0:00:07]} 88. Ke6 {[%clk 0:00:08]}  Nf8+ {[%clk 0:00:07]} 1/2-1/2


[Site "https://www.chess.com"]

[Event "Titled Tuesday Blitz July 18 Late 2023"]
[White "Philippe, Guillaume"]
[Black "Chemin, Justo Reinaldo"]
[WhiteFideId "36048763"]
[BlackFideId "2101580"]
[WhiteElo "2516"]
[BlackElo "2272"]
[Result "1-0"]
[Round "3"]
[TimeControl "180+2"]
[Date "2023.07.18"]
[WhiteClock "0:01:32"]
[BlackClock "0:00:33"]
[Board "130"]

1. d4 {[%clk 0:03:00]}  e6 {[%clk 0:03:00]} 2. c4 {[%clk 0:03:00]}  d5 {[%clk 0:03:00]} 3. Nc3 {[%clk 0:02:59]}  c6 {[%clk 0:03:00]} 4. cxd5 {[%clk 0:03:00]}  exd5 {[%clk 0:02:59]} 5. e4 {[%clk 0:02:54]}  dxe4 {[%clk 0:02:59]} 6. Nxe4 {[%clk 0:02:55]}  Bb4+ {[%clk 0:02:52]} 7. Nc3 {[%clk 0:02:52]}  Nf6 {[%clk 0:02:47]} 8. Nf3 {[%clk 0:02:53]}  O-O {[%clk 0:02:46]} 9. Be2 {[%clk 0:02:51]}  Re8 {[%clk 0:02:46]} 10. O-O {[%clk 0:02:49]}  Nbd7 {[%clk 0:02:42]} 11. Bg5 {[%clk 0:02:43]}  h6 {[%clk 0:02:39]} 12. Bh4 {[%clk 0:02:44]}  Be7 {[%clk 0:02:37]} 13. Ne5 {[%clk 0:02:40]}  Nxe5 {[%clk 0:02:35]} 14. dxe5 {[%clk 0:02:41]}  Nd5 {[%clk 0:02:28]} 15. Bxe7 {[%clk 0:02:39]}  Rxe7 {[%clk 0:02:18]} 16. Nxd5 {[%clk 0:02:32]}  cxd5 {[%clk 0:02:17]} 17. f4 {[%clk 0:02:26]}  Bf5 {[%clk 0:02:16]} 18. Kh1 {[%clk 0:02:23]}  Rc8 {[%clk 0:02:07]} 19. Bd3 {[%clk 0:02:15]}  Bxd3 {[%clk 0:02:04]} 20. Qxd3 {[%clk 0:02:16]}  Qa5 {[%clk 0:01:45]} 21. Rae1 {[%clk 0:02:09]}  Rce8 {[%clk 0:01:39]} 22. a3 {[%clk 0:02:06]}  a6 {[%clk 0:01:38]} 23. b4 {[%clk 0:02:03]}  Qb5 {[%clk 0:01:36]} 24. Qxb5 {[%clk 0:01:59]}  axb5 {[%clk 0:01:37]} 25. Rd1 {[%clk 0:02:00]}  Rd7 {[%clk 0:01:26]} 26. Rd4 {[%clk 0:02:00]}  Kf8 {[%clk 0:01:23]} 27. Rfd1 {[%clk 0:02:00]}  Red8 {[%clk 0:01:23]} 28. g4 {[%clk 0:01:57]}  Ke7 {[%clk 0:01:22]} 29. f5 {[%clk 0:01:54]}  f6 {[%clk 0:01:18]} 30. e6 {[%clk 0:01:52]}  Rd6 {[%clk 0:01:19]} 31. h4 {[%clk 0:01:50]}  h5 {[%clk 0:01:18]} 32. g5 {[%clk 0:01:48]}  fxg5 {[%clk 0:01:15]} 33. hxg5 {[%clk 0:01:49]}  g6 {[%clk 0:01:12]} 34. f6+ {[%clk 0:01:39]}  Kxe6 {[%clk 0:01:12]} 35. Kg2 {[%clk 0:01:40]}  Kf5 {[%clk 0:01:07]} 36. f7 {[%clk 0:01:37]}  Ke6 {[%clk 0:00:46]} 37. Rf4 {[%clk 0:01:35]}  Rf8 {[%clk 0:00:45]} 38. Rc1 {[%clk 0:01:33]}  Rxf7 {[%clk 0:00:43]} 39. Re1+ {[%clk 0:01:33]}  Kd7 {[%clk 0:00:39]} 40. Rxf7+ {[%clk 0:01:34]}  Kc6 {[%clk 0:00:40]} 41. Rf6 {[%clk 0:01:34]}  d4 {[%clk 0:00:39]} 42. Kf3 {[%clk 0:01:33]}  d3 {[%clk 0:00:33]} 43. Rxd6+ {[%clk 0:01:32]} 1-0


[Site "https://www.chess.com"]

[Event "Titled Tuesday Blitz July 18 Late 2023"]
[White "Sarkar, Justin"]
[Black "Balague Camps, Marc"]
[WhiteFideId "2010011"]
[BlackFideId "2297914"]
[WhiteElo "2245"]
[BlackElo "2514"]
[Result "0-1"]
[Round "3"]
[TimeControl "180+2"]
[Date "2023.07.18"]
[WhiteClock "0:00:00"]
[BlackClock "0:01:52"]
[Board "132"]

1. e4 {[%clk 0:02:51]}  c5 {[%clk 0:02:59]} 2. Nf3 {[%clk 0:02:51]}  e6 {[%clk 0:03:00]} 3. d4 {[%clk 0:02:50]}  cxd4 {[%clk 0:03:01]} 4. Nxd4 {[%clk 0:02:50]}  Nc6 {[%clk 0:03:01]} 5. Nc3 {[%clk 0:02:49]}  Qc7 {[%clk 0:03:01]} 6. Qd3 {[%clk 0:02:49]}  Nxd4 {[%clk 0:03:00]} 7. Qxd4 {[%clk 0:02:49]}  a6 {[%clk 0:03:01]} 8. f4 {[%clk 0:02:34]}  b5 {[%clk 0:03:00]} 9. Be3 {[%clk 0:01:59]}  Bb7 {[%clk 0:03:00]} 10. Bd3 {[%clk 0:01:20]}  Nf6 {[%clk 0:02:57]} 11. a3 {[%clk 0:00:50]}  Rc8 {[%clk 0:02:39]} 12. h3 {[%clk 0:00:36]}  Bc5 {[%clk 0:02:36]} 13. Qxc5 {[%clk 0:00:35]}  Qxc5 {[%clk 0:02:35]} 14. Bxc5 {[%clk 0:00:34]}  Rxc5 {[%clk 0:02:36]} 15. g4 {[%clk 0:00:31]}  Ke7 {[%clk 0:02:23]} 16. Kd2 {[%clk 0:00:22]}  d6 {[%clk 0:02:22]} 17. Rhe1 {[%clk 0:00:19]}  Rhc8 {[%clk 0:02:23]} 18. g5 {[%clk 0:00:09]}  Nd7 {[%clk 0:02:23]} 19. h4 {[%clk 0:00:08]}  Nb6 {[%clk 0:02:23]} 20. Re3 {[%clk 0:00:04]}  Nc4+ {[%clk 0:02:18]} 21. Bxc4 {[%clk 0:00:04]}  Rxc4 {[%clk 0:02:19]} 22. b3 {[%clk 0:00:03]}  Rd4+ {[%clk 0:02:18]} 23. Rd3 {[%clk 0:00:03]}  Rxd3+ {[%clk 0:02:17]} 24. cxd3 {[%clk 0:00:02]}  d5 {[%clk 0:02:15]} 25. b4 {[%clk 0:00:01]}  dxe4 {[%clk 0:02:14]} 26. dxe4 {[%clk 0:00:01]}  Rc4 {[%clk 0:02:11]} 27. Kd3 {[%clk 0:00:00]}  Rc7 {[%clk 0:01:52]} 0-1


[Site "https://www.chess.com"]

[Event "Titled Tuesday Blitz July 18 Late 2023"]
[White "Kalaiyalahan, Akshaya"]
[Black "Hnydiuk, Aleksander"]
[WhiteFideId "422894"]
[BlackFideId "1109057"]
[WhiteElo "2241"]
[BlackElo "2511"]
[Result "0-1"]
[Round "3"]
[TimeControl "180+2"]
[Date "2023.07.18"]
[WhiteClock "0:00:47"]
[BlackClock "0:01:54"]
[Board "134"]

1. e4 {[%clk 0:03:00]}  e6 {[%clk 0:02:57]} 2. d4 {[%clk 0:02:59]}  d5 {[%clk 0:02:57]} 3. exd5 {[%clk 0:02:59]}  exd5 {[%clk 0:02:57]} 4. Nf3 {[%clk 0:02:59]}  Be7 {[%clk 0:02:54]} 5. Bd3 {[%clk 0:02:58]}  Bg4 {[%clk 0:02:53]} 6. c3 {[%clk 0:02:53]}  Nf6 {[%clk 0:02:51]} 7. O-O {[%clk 0:02:51]}  O-O {[%clk 0:02:51]} 8. Nbd2 {[%clk 0:02:49]}  Nbd7 {[%clk 0:02:48]} 9. h3 {[%clk 0:02:49]}  Bh5 {[%clk 0:02:48]} 10. Re1 {[%clk 0:02:49]}  Re8 {[%clk 0:02:46]} 11. Qb3 {[%clk 0:02:46]}  Rb8 {[%clk 0:02:36]} 12. Ne5 {[%clk 0:02:42]}  Bd6 {[%clk 0:02:30]} 13. f4 {[%clk 0:02:12]}  Bg6 {[%clk 0:02:27]} 14. f5 {[%clk 0:02:10]}  Bxe5 {[%clk 0:02:24]} 15. dxe5 {[%clk 0:02:05]}  Nxe5 {[%clk 0:02:22]} 16. Bc2 {[%clk 0:01:58]}  Bh5 {[%clk 0:02:19]} 17. g4 {[%clk 0:01:47]}  Nfxg4 {[%clk 0:02:16]} 18. hxg4 {[%clk 0:01:47]}  Qh4 {[%clk 0:02:13]} 19. Rf1 {[%clk 0:01:17]}  Qg3+ {[%clk 0:02:07]} 20. Kh1 {[%clk 0:01:16]}  Nxg4 {[%clk 0:02:05]} 21. Nf3 {[%clk 0:01:09]}  Re1 {[%clk 0:01:57]} 22. Bf4 {[%clk 0:00:47]}  Nf2# {[%clk 0:01:54]} 0-1


[Site "https://www.chess.com"]